[Event "Late-Titled-Tuesday-Blitz-September-12-2023"]
[Site "Chess.com"]
[Date "2023.09.12"]
[Round "5"]
[White "becemix"]
[Black "AsaHoffmann"]
[Result "1-0"]
[WhiteElo "2533"]
[BlackElo "2338"]
[TimeControl "180+1"]
[EndTime "14:51:06 PDT"]
[Termination "becemix won by resignation"]

1. e4 {[%clk 0:02:56]} 1... d6 {[%clk 0:02:56.7]} 2. d4 {[%clk 0:02:54.6]} 2...
Nf6 {[%clk 0:02:54.4]} 3. Nc3 {[%clk 0:02:50.8]} 3... c6 {[%clk 0:02:54.3]} 4.
Bg5 {[%clk 0:02:23.9]} 4... Nbd7 {[%clk 0:02:53.6]} 5. Qd2 {[%clk 0:02:20.8]}
5... b5 {[%clk 0:02:53.3]} 6. f3 {[%clk 0:02:19.2]} 6... e5 {[%clk 0:02:51.1]}
7. Nge2 {[%clk 0:02:17.9]} 7... Be7 {[%clk 0:02:50.5]} 8. O-O-O {[%clk
0:02:17.5]} 8... Qc7 {[%clk 0:02:50.3]} 9. h4 {[%clk 0:02:09.2]} 9... a6 {[%clk
0:02:48.4]} 10. dxe5 {[%clk 0:01:44.9]} 10... dxe5 {[%clk 0:02:46.5]} 11. Ng3
{[%clk 0:01:45]} 11... Nb6 {[%clk 0:02:40.3]} 12. Bxf6 {[%clk 0:01:29.6]} 12...
Bxf6 {[%clk 0:02:37.3]} 13. Qd6 {[%clk 0:01:28.8]} 13... Ra7 {[%clk 0:02:17.1]}
14. Qxc7 {[%clk 0:01:23.2]} 14... Rxc7 {[%clk 0:02:16.7]} 15. Rd2 {[%clk
0:01:22.9]} 15... Be6 {[%clk 0:02:13.6]} 16. b3 {[%clk 0:01:10.2]} 16... g6
{[%clk 0:02:11.7]} 17. Kb2 {[%clk 0:00:48.1]} 17... h5 {[%clk 0:02:10.1]} 18.
Be2 {[%clk 0:00:47.7]} 18... Ke7 {[%clk 0:02:09.6]} 19. Nf1 {[%clk 0:00:46.7]}
19... Rd8 {[%clk 0:01:55.5]} 20. Rxd8 {[%clk 0:00:45.1]} 20... Kxd8 {[%clk
0:01:53.8]} 21. g3 {[%clk 0:00:45.6]} 21... Be7 {[%clk 0:01:48.8]} 22. Ne3
{[%clk 0:00:43.4]} 22... Bc5 {[%clk 0:01:45.5]} 23. Rd1+ {[%clk 0:00:41.9]}
23... Ke7 {[%clk 0:01:44.7]} 24. Nf1 {[%clk 0:00:41.9]} 24... Rd7 {[%clk
0:01:40.9]} 25. Bd3 {[%clk 0:00:37]} 25... Rd4 {[%clk 0:01:29]} 26. Be2 {[%clk
0:00:32]} 26... Rxd1 {[%clk 0:01:27.6]} 27. Nxd1 {[%clk 0:00:32]} 27... Bf2
{[%clk 0:01:26.6]} 28. Nxf2 {[%clk 0:00:31.6]} 1-0

[Event "Late-Titled-Tuesday-Blitz-September-12-2023"]
[Site "Chess.com"]
[Date "2023.09.12"]
[Round "5"]
[White "Herman-NY"]
[Black "Veleamater"]
[Result "1-0"]
[WhiteElo "2526"]
[BlackElo "2318"]
[TimeControl "180+1"]
[EndTime "14:51:08 PDT"]
[Termination "Herman-NY won by resignation"]

1. e4 {[%clk 0:03:00.9]} 1... d6 {[%clk 0:03:00.9]} 2. d4 {[%clk 0:03:00.9]}
2... g6 {[%clk 0:03:01.1]} 3. Nc3 {[%clk 0:03:01.7]} 3... Bg7 {[%clk 0:03:01.2]}
4. Be3 {[%clk 0:03:01.9]} 4... Nf6 {[%clk 0:03:01.6]} 5. f3 {[%clk 0:03:00.3]}
5... O-O {[%clk 0:03:02.1]} 6. Qd2 {[%clk 0:03:00.3]} 6... Nc6 {[%clk
0:03:02.7]} 7. d5 {[%clk 0:02:59.7]} 7... Ne5 {[%clk 0:03:02]} 8. h4 {[%clk
0:02:56]} 8... c6 {[%clk 0:03:01.2]} 9. h5 {[%clk 0:02:50.3]} 9... cxd5 {[%clk
0:02:59.2]} 10. Nxd5 {[%clk 0:02:47.8]} 10... Nxh5 {[%clk 0:02:57.3]} 11. Bh6
{[%clk 0:01:49.4]} 11... e6 {[%clk 0:02:50.3]} 12. Bxg7 {[%clk 0:01:48.1]} 12...
Kxg7 {[%clk 0:02:49.8]} 13. Nc3 {[%clk 0:01:24.9]} 13... Nf6 {[%clk 0:02:48]}
14. Qh6+ {[%clk 0:01:22.2]} 14... Kg8 {[%clk 0:02:47.5]} 15. O-O-O {[%clk
0:01:14.3]} 15... b5 {[%clk 0:02:08]} 16. Nh3 {[%clk 0:01:12.5]} 16... b4 {[%clk
0:02:05.7]} 17. Ng5 {[%clk 0:01:05.8]} 17... Re8 {[%clk 0:01:56.2]} 18. Nb5
{[%clk 0:00:59.6]} 18... d5 {[%clk 0:01:44.2]} 19. Nxh7 {[%clk 0:00:49.8]} 19...
Nxh7 {[%clk 0:01:43.4]} 20. Qxh7+ {[%clk 0:00:49.5]} 20... Kf8 {[%clk
0:01:43.1]} 21. Qh8+ {[%clk 0:00:49.9]} 21... Ke7 {[%clk 0:01:41.8]} 22. Qxe5
{[%clk 0:00:50.8]} 22... Qb6 {[%clk 0:01:40.7]} 23. exd5 {[%clk 0:00:42.3]}
23... Ba6 {[%clk 0:01:37.1]} 24. d6+ {[%clk 0:00:39.3]} 24... Kd7 {[%clk
0:01:37.2]} 25. Nc7 {[%clk 0:00:36.3]} 25... Rac8 {[%clk 0:01:13.8]} 26. Bxa6
{[%clk 0:00:34.8]} 1-0

[Event "Late-Titled-Tuesday-Blitz-September-12-2023"]
[Site "Chess.com"]
[Date "2023.09.12"]
[Round "5"]
[White "Mackster23"]
[Black "KVAIDAN"]
[Result "1-0"]
[WhiteElo "2550"]
[BlackElo "2266"]
[TimeControl "180+1"]
[EndTime "14:51:13 PDT"]
[Termination "Mackster23 won by checkmate"]

1. e4 {[%clk 0:03:00.9]} 1... e5 {[%clk 0:02:58.7]} 2. Nf3 {[%clk 0:02:59.5]}
2... d5 {[%clk 0:02:54.9]} 3. exd5 {[%clk 0:02:57.9]} 3... e4 {[%clk 0:02:54.8]}
4. Qe2 {[%clk 0:02:57]} 4... Nf6 {[%clk 0:02:54.6]} 5. Nc3 {[%clk 0:02:56.8]}
5... Be7 {[%clk 0:02:54.5]} 6. Nxe4 {[%clk 0:02:47.2]} 6... Nxd5 {[%clk
0:02:54]} 7. d4 {[%clk 0:02:19.5]} 7... O-O {[%clk 0:02:52.9]} 8. Bd2 {[%clk
0:01:46.5]} 8... Re8 {[%clk 0:02:52]} 9. O-O-O {[%clk 0:01:45.5]} 9... f5 {[%clk
0:02:51.7]} 10. Nc3 {[%clk 0:01:43.5]} 10... Nxc3 {[%clk 0:02:51.5]} 11. Bxc3
{[%clk 0:01:42]} 11... Bg5+ {[%clk 0:02:48.3]} 12. Bd2 {[%clk 0:01:34.2]} 12...
Rxe2 {[%clk 0:02:45.7]} 13. Bxg5 {[%clk 0:01:34.1]} 13... Re7 {[%clk 0:02:38.4]}
14. Bc4+ {[%clk 0:01:30.6]} 14... Kh8 {[%clk 0:02:37.6]} 15. Ne5 {[%clk
0:01:20.4]} 15... Qf8 {[%clk 0:02:24.6]} 16. Bxe7 {[%clk 0:00:28.6]} 16... Qxe7
{[%clk 0:02:23.9]} 17. Rhe1 {[%clk 0:00:21.1]} 17... Be6 {[%clk 0:02:19.1]} 18.
Ng6+ {[%clk 0:00:09]} 18... hxg6 {[%clk 0:02:17.8]} 19. Rxe6 {[%clk 0:00:08.8]}
19... Qg5+ {[%clk 0:02:18.1]} 20. Kb1 {[%clk 0:00:07.5]} 20... Nc6 {[%clk
0:02:18.3]} 21. Rd3 {[%clk 0:00:07.3]} 21... Qh5 {[%clk 0:01:57.2]} 22. Rh3
{[%clk 0:00:07]} 22... Nxd4 {[%clk 0:01:57.4]} 23. Rxg6 {[%clk 0:00:04.7]} 23...
Qxh3 {[%clk 0:01:52.9]} 24. gxh3 {[%clk 0:00:05.6]} 24... Re8 {[%clk 0:01:51.3]}
25. b3 {[%clk 0:00:04.1]} 25... c6 {[%clk 0:01:48.5]} 26. Rg5 {[%clk 0:00:03.5]}
26... Re5 {[%clk 0:01:43.4]} 27. Rh5# {[%clk 0:00:03.6]} 1-0

[Event "Late-Titled-Tuesday-Blitz-September-12-2023"]
[Site "Chess.com"]
[Date "2023.09.12"]
[Round "5"]
[White "dennisodessa"]
[Black "petr577"]
[Result "1-0"]
[WhiteElo "2530"]
[BlackElo "2332"]
[TimeControl "180+1"]
[EndTime "14:51:22 PDT"]
[Termination "dennisodessa won by resignation"]

1. d4 {[%clk 0:02:54]} 1... Nf6 {[%clk 0:02:59.6]} 2. c4 {[%clk 0:02:54.6]} 2...
e5 {[%clk 0:03:00.1]} 3. Nc3 {[%clk 0:02:55.3]} 3... exd4 {[%clk 0:02:59.8]} 4.
Qxd4 {[%clk 0:02:56.2]} 4... Nc6 {[%clk 0:03:00.1]} 5. Qh4 {[%clk 0:02:56.9]}
5... Be7 {[%clk 0:02:47.7]} 6. Bg5 {[%clk 0:02:55.4]} 6... d5 {[%clk 0:02:05.2]}
7. O-O-O {[%clk 0:02:41.2]} 7... d4 {[%clk 0:01:15.7]} 8. Nf3 {[%clk 0:02:39.2]}
8... dxc3 {[%clk 0:01:02.3]} 9. Rxd8+ {[%clk 0:02:37.7]} 9... Nxd8 {[%clk
0:01:03.2]} 10. bxc3 {[%clk 0:02:32.6]} 10... Ba3+ {[%clk 0:01:02.5]} 11. Kc2
{[%clk 0:02:28.4]} 11... Bf5+ {[%clk 0:00:48.5]} 12. Kb3 {[%clk 0:02:27.3]}
12... Be7 {[%clk 0:00:47.8]} 13. Nd4 {[%clk 0:02:27.7]} 13... Bg6 {[%clk
0:00:44.6]} 14. f3 {[%clk 0:02:13.8]} 14... c5 {[%clk 0:00:20.2]} 15. Nb5 {[%clk
0:02:12.5]} 15... Ne6 {[%clk 0:00:20.8]} 16. Bxf6 {[%clk 0:02:02.1]} 16... Bxf6
{[%clk 0:00:20.4]} 17. Qg3 {[%clk 0:02:03]} 17... O-O {[%clk 0:00:20]} 18. e4
{[%clk 0:01:58.1]} 18... a6 {[%clk 0:00:18.3]} 19. Nd6 {[%clk 0:01:57.5]} 19...
Rab8 {[%clk 0:00:18.2]} 20. f4 {[%clk 0:01:55.4]} 20... Bh5 {[%clk 0:00:10.5]}
21. f5 {[%clk 0:01:50]} 21... Nc7 {[%clk 0:00:07.1]} 22. e5 {[%clk 0:01:45.9]}
22... b5 {[%clk 0:00:04.4]} 23. exf6 {[%clk 0:01:44.9]} 23... bxc4+ {[%clk
0:00:04.7]} 24. Kc2 {[%clk 0:01:39.8]} 24... g6 {[%clk 0:00:04.8]} 25. Bxc4
{[%clk 0:01:39.4]} 25... Nb5 {[%clk 0:00:03.7]} 26. Bxb5 {[%clk 0:01:38]} 26...
axb5 {[%clk 0:00:04.6]} 27. Qg5 {[%clk 0:01:37.5]} 27... Kh8 {[%clk 0:00:03.2]}
28. Qh6 {[%clk 0:01:38.3]} 1-0

[Event "Late-Titled-Tuesday-Blitz-September-12-2023"]
[Site "Chess.com"]
[Date "2023.09.12"]
[Round "5"]
[White "Rinqed222"]
[Black "a-z30"]
[Result "0-1"]
[WhiteElo "2238"]
[BlackElo "2420"]
[TimeControl "180+1"]
[EndTime "14:51:23 PDT"]
[Termination "a-z30 won on time"]

1. e4 {[%clk 0:03:00.9]} 1... d6 {[%clk 0:02:57.4]} 2. d4 {[%clk 0:02:58.5]}
2... Nf6 {[%clk 0:02:57.7]} 3. Nc3 {[%clk 0:02:58.4]} 3... g6 {[%clk 0:02:58.1]}
4. Be2 {[%clk 0:02:54]} 4... Bg7 {[%clk 0:02:58.2]} 5. Be3 {[%clk 0:02:54.3]}
5... O-O {[%clk 0:02:57.9]} 6. g4 {[%clk 0:02:54.8]} 6... Nc6 {[%clk 0:02:47.9]}
7. g5 {[%clk 0:02:50.6]} 7... Nd7 {[%clk 0:02:45.7]} 8. h4 {[%clk 0:02:45.4]}
8... e5 {[%clk 0:02:44.6]} 9. d5 {[%clk 0:02:42.5]} 9... Nd4 {[%clk 0:02:44.1]}
10. h5 {[%clk 0:02:18.4]} 10... c6 {[%clk 0:02:41.4]} 11. Qd2 {[%clk 0:02:05.8]}
11... Nb6 {[%clk 0:02:36.4]} 12. O-O-O {[%clk 0:01:45.1]} 12... cxd5 {[%clk
0:02:34.6]} 13. exd5 {[%clk 0:01:33.5]} 13... Bf5 {[%clk 0:02:31.2]} 14. Bd3
{[%clk 0:01:31]} 14... Rc8 {[%clk 0:02:26.7]} 15. Bxd4 {[%clk 0:01:04.2]} 15...
exd4 {[%clk 0:02:19.4]} 16. Ne4 {[%clk 0:01:04]} 16... Nc4 {[%clk 0:02:18.6]}
17. Qf4 {[%clk 0:00:38.4]} 17... Re8 {[%clk 0:02:06.8]} 18. hxg6 {[%clk
0:00:17]} 18... hxg6 {[%clk 0:01:53.4]} 19. Qh4 {[%clk 0:00:13.5]} 19... Bxe4
{[%clk 0:01:49.5]} 20. Bxe4 {[%clk 0:00:13.6]} 20... Nxb2 {[%clk 0:01:48.7]} 21.
Qh7+ {[%clk 0:00:06.9]} 21... Kf8 {[%clk 0:01:48.2]} 22. Rh4 {[%clk 0:00:07.5]}
22... d3 {[%clk 0:01:43.9]} 23. Rf4 {[%clk 0:00:05.8]} 23... Rxc2+ {[%clk
0:01:33.8]} 24. Kb1 {[%clk 0:00:05.5]} 24... Re7 {[%clk 0:01:31.1]} 25. Bxg6
{[%clk 0:00:04.8]} 25... Qb6 {[%clk 0:01:27.7]} 0-1

[Event "Late-Titled-Tuesday-Blitz-September-12-2023"]
[Site "Chess.com"]
[Date "2023.09.12"]
[Round "5"]
[White "Alex_Banzea"]
[Black "Rud_Makarian"]
[Result "1-0"]
[WhiteElo "2658"]
[BlackElo "2935"]
[TimeControl "180+1"]
[EndTime "14:51:24 PDT"]
[Termination "Alex_Banzea won on time"]

1. d4 {[%clk 0:03:00.9]} 1... Nf6 {[%clk 0:02:48.9]} 2. Nc3 {[%clk 0:03:00.6]}
2... d5 {[%clk 0:02:47.9]} 3. Bf4 {[%clk 0:03:01.4]} 3... c5 {[%clk 0:02:47.8]}
4. e3 {[%clk 0:03:01.8]} 4... a6 {[%clk 0:02:45.1]} 5. dxc5 {[%clk 0:03:02]}
5... e6 {[%clk 0:02:44.7]} 6. Na4 {[%clk 0:03:01.7]} 6... Nbd7 {[%clk
0:02:44.3]} 7. Nf3 {[%clk 0:02:57.3]} 7... Nxc5 {[%clk 0:02:43.9]} 8. Nxc5
{[%clk 0:02:58.2]} 8... Bxc5 {[%clk 0:02:43.9]} 9. c3 {[%clk 0:02:59.1]} 9...
O-O {[%clk 0:02:43.8]} 10. Bd3 {[%clk 0:02:59.7]} 10... h6 {[%clk 0:02:42.1]}
11. O-O {[%clk 0:03:00.1]} 11... b6 {[%clk 0:02:28.9]} 12. Qe2 {[%clk
0:02:59.2]} 12... Bb7 {[%clk 0:02:29.2]} 13. Rad1 {[%clk 0:02:56.2]} 13... Qe7
{[%clk 0:02:29.4]} 14. Be5 {[%clk 0:02:52.2]} 14... b5 {[%clk 0:02:27.7]} 15.
Bxf6 {[%clk 0:02:51.2]} 15... Qxf6 {[%clk 0:02:27.7]} 16. e4 {[%clk 0:02:52.1]}
16... Rad8 {[%clk 0:01:17.7]} 17. e5 {[%clk 0:02:51.9]} 17... Qe7 {[%clk
0:01:16.9]} 18. a3 {[%clk 0:02:52.5]} 18... g6 {[%clk 0:01:13.6]} 19. Nd4 {[%clk
0:02:52.5]} 19... Rc8 {[%clk 0:01:09.1]} 20. f4 {[%clk 0:02:48]} 20... Bxd4+
{[%clk 0:01:08.1]} 21. cxd4 {[%clk 0:02:48]} 21... b4 {[%clk 0:01:09]} 22. a4
{[%clk 0:02:31.3]} 22... b3 {[%clk 0:01:07.3]} 23. Qe3 {[%clk 0:02:22.4]} 23...
Kg7 {[%clk 0:01:02.1]} 24. f5 {[%clk 0:02:00.5]} 24... exf5 {[%clk 0:00:58.4]}
25. g4 {[%clk 0:01:56.5]} 25... fxg4 {[%clk 0:00:38.9]} 26. Rf6 {[%clk
0:01:57.4]} 26... Rc4 {[%clk 0:00:12.9]} 27. Rdf1 {[%clk 0:01:56.1]} 27... Bc8
{[%clk 0:00:13.5]} 28. Bxg6 {[%clk 0:01:52.8]} 28... Be6 {[%clk 0:00:12.1]} 29.
Bh7 {[%clk 0:01:37.1]} 1-0

[Event "Late-Titled-Tuesday-Blitz-September-12-2023"]
[Site "Chess.com"]
[Date "2023.09.12"]
[Round "5"]
[White "MajorCoast"]
[Black "MBA_CHESS_2021"]
[Result "1-0"]
[WhiteElo "2282"]
[BlackElo "2210"]
[TimeControl "180+1"]
[EndTime "14:51:30 PDT"]
[Termination "MajorCoast won by resignation"]

1. d4 {[%clk 0:03:00.9]} 1... d5 {[%clk 0:02:59.4]} 2. Nf3 {[%clk 0:03:01]} 2...
c6 {[%clk 0:02:59.3]} 3. h3 {[%clk 0:03:00.4]} 3... g6 {[%clk 0:02:59]} 4. Bf4
{[%clk 0:03:00.3]} 4... Bg7 {[%clk 0:02:59.1]} 5. e3 {[%clk 0:03:00.4]} 5... Bf5
{[%clk 0:02:53.6]} 6. Bd3 {[%clk 0:02:58.5]} 6... Bxd3 {[%clk 0:02:53.2]} 7.
Qxd3 {[%clk 0:02:59.4]} 7... e6 {[%clk 0:02:53.6]} 8. c4 {[%clk 0:02:59.4]} 8...
Ne7 {[%clk 0:02:50.6]} 9. Nc3 {[%clk 0:02:55.5]} 9... O-O {[%clk 0:02:49.9]} 10.
O-O {[%clk 0:02:55.5]} 10... Nd7 {[%clk 0:02:47.7]} 11. cxd5 {[%clk 0:02:55.7]}
11... exd5 {[%clk 0:02:47.3]} 12. b4 {[%clk 0:02:51.2]} 12... a6 {[%clk
0:02:46.5]} 13. a4 {[%clk 0:02:50.8]} 13... h6 {[%clk 0:02:34.1]} 14. b5 {[%clk
0:02:50.1]} 14... axb5 {[%clk 0:02:33.7]} 15. axb5 {[%clk 0:02:50.4]} 15... Re8
{[%clk 0:02:29.6]} 16. bxc6 {[%clk 0:02:43.9]} 16... bxc6 {[%clk 0:02:29.1]} 17.
Nd2 {[%clk 0:02:30.9]} 17... g5 {[%clk 0:02:26.8]} 18. Bh2 {[%clk 0:02:27.7]}
18... Ng6 {[%clk 0:02:24.8]} 19. Rfc1 {[%clk 0:02:14.5]} 19... Rxa1 {[%clk
0:01:47.3]} 20. Rxa1 {[%clk 0:02:13.8]} 20... Qb6 {[%clk 0:01:47.8]} 21. Ra6
{[%clk 0:02:04.2]} 21... Qb7 {[%clk 0:01:45.4]} 22. Bg3 {[%clk 0:01:58.1]} 22...
Nc5 {[%clk 0:01:40.1]} 23. dxc5 {[%clk 0:01:49.9]} 23... Bxc3 {[%clk 0:01:39.7]}
24. Rb6 {[%clk 0:01:49.6]} 24... Qd7 {[%clk 0:00:38.3]} 25. Qxc3 {[%clk
0:01:49.3]} 25... f5 {[%clk 0:00:36.2]} 26. Qb2 {[%clk 0:01:39.5]} 26... f4
{[%clk 0:00:34.5]} 27. Rb7 {[%clk 0:01:36.8]} 27... Qxb7 {[%clk 0:00:19.7]} 28.
Qxb7 {[%clk 0:01:37.7]} 28... fxg3 {[%clk 0:00:20.1]} 29. Qxc6 {[%clk
0:01:29.8]} 29... gxf2+ {[%clk 0:00:19.8]} 30. Kh2 {[%clk 0:01:23.9]} 30... Rf8
{[%clk 0:00:18.3]} 31. Qxg6+ {[%clk 0:01:23]} 31... Kh8 {[%clk 0:00:18.3]} 32.
Qxh6+ {[%clk 0:01:22.3]} 32... Kg8 {[%clk 0:00:17.8]} 33. Qxg5+ {[%clk
0:01:22.4]} 1-0

[Event "Late-Titled-Tuesday-Blitz-September-12-2023"]
[Site "Chess.com"]
[Date "2023.09.12"]
[Round "5"]
[White "Siemba"]
[Black "rikchessmx"]
[Result "1-0"]
[WhiteElo "2520"]
[BlackElo "2292"]
[TimeControl "180+1"]
[EndTime "14:51:32 PDT"]
[Termination "Siemba won on time"]

1. Nf3 {[%clk 0:03:00.9]} 1... g6 {[%clk 0:02:59.3]} 2. g3 {[%clk 0:03:01.8]}
2... Bg7 {[%clk 0:02:59.6]} 3. Bg2 {[%clk 0:03:01.2]} 3... e5 {[%clk 0:02:59.9]}
4. e4 {[%clk 0:02:57.5]} 4... Nf6 {[%clk 0:02:58.9]} 5. d3 {[%clk 0:02:57.8]}
5... d6 {[%clk 0:02:58.7]} 6. O-O {[%clk 0:02:58.4]} 6... O-O {[%clk 0:02:57.5]}
7. Re1 {[%clk 0:02:59.1]} 7... Nc6 {[%clk 0:02:57.2]} 8. c3 {[%clk 0:02:58.2]}
8... Nh5 {[%clk 0:02:56.7]} 9. d4 {[%clk 0:02:55.4]} 9... exd4 {[%clk
0:02:55.8]} 10. Nxd4 {[%clk 0:02:55.1]} 10... Ne5 {[%clk 0:02:53.8]} 11. h3
{[%clk 0:02:50.8]} 11... Bd7 {[%clk 0:02:48.2]} 12. Na3 {[%clk 0:02:47]} 12...
a6 {[%clk 0:02:47]} 13. Nac2 {[%clk 0:02:46.9]} 13... Rb8 {[%clk 0:02:34.9]} 14.
a4 {[%clk 0:02:46.5]} 14... Qc8 {[%clk 0:02:30.1]} 15. Kh2 {[%clk 0:02:45.8]}
15... c5 {[%clk 0:02:22.5]} 16. Ne2 {[%clk 0:02:45.9]} 16... Qc7 {[%clk
0:02:19]} 17. Ne3 {[%clk 0:02:45.9]} 17... Bc6 {[%clk 0:02:17.6]} 18. Nd5 {[%clk
0:02:42.5]} 18... Qd8 {[%clk 0:02:12.8]} 19. a5 {[%clk 0:02:33.6]} 19... Nf6
{[%clk 0:02:07.4]} 20. Nef4 {[%clk 0:02:18]} 20... Re8 {[%clk 0:01:54]} 21. Ra2
{[%clk 0:02:14]} 21... h5 {[%clk 0:01:44.1]} 22. b3 {[%clk 0:02:11.8]} 22... h4
{[%clk 0:01:43.6]} 23. g4 {[%clk 0:02:10.7]} 23... g5 {[%clk 0:01:23.1]} 24.
Nxf6+ {[%clk 0:02:02.1]} 24... Qxf6 {[%clk 0:01:22.1]} 25. Nd5 {[%clk 0:02:01]}
25... Bxd5 {[%clk 0:01:10.6]} 26. Qxd5 {[%clk 0:02:01.9]} 26... Re7 {[%clk
0:00:46.5]} 27. Rf1 {[%clk 0:02:01.8]} 27... Nf3+ {[%clk 0:00:38.6]} 28. Kh1
{[%clk 0:01:56.5]} 28... Rbe8 {[%clk 0:00:29]} 29. Re2 {[%clk 0:01:49.8]} 29...
Bh6 {[%clk 0:00:16.5]} 30. Bb2 {[%clk 0:01:49.1]} 30... Qf4 {[%clk 0:00:11.8]}
31. Bxf3 {[%clk 0:01:42.4]} 31... Qxf3+ {[%clk 0:00:11.8]} 32. Kg1 {[%clk
0:01:43.3]} 32... Rxe4 {[%clk 0:00:04.1]} 33. Rxe4 {[%clk 0:01:39.1]} 33... Rxe4
{[%clk 0:00:03.1]} 34. c4 {[%clk 0:01:35.6]} 1-0

[Event "Late-Titled-Tuesday-Blitz-September-12-2023"]
[Site "Chess.com"]
[Date "2023.09.12"]
[Round "5"]
[White "AlexanderL"]
[Black "bazar-wokzal"]
[Result "1-0"]
[WhiteElo "2856"]
[BlackElo "2572"]
[TimeControl "180+1"]
[EndTime "14:51:37 PDT"]
[Termination "AlexanderL won by resignation"]

1. Nf3 {[%clk 0:03:00.9]} 1... c5 {[%clk 0:02:59.3]} 2. c3 {[%clk 0:03:00.8]}
2... Nf6 {[%clk 0:02:58.8]} 3. d4 {[%clk 0:02:59.2]} 3... e6 {[%clk 0:02:58.6]}
4. Bf4 {[%clk 0:02:58.5]} 4... d5 {[%clk 0:02:58.7]} 5. e3 {[%clk 0:02:58.3]}
5... Nc6 {[%clk 0:02:56.6]} 6. Nbd2 {[%clk 0:02:58.3]} 6... Bd6 {[%clk
0:02:56.5]} 7. Bg3 {[%clk 0:02:58.4]} 7... Qe7 {[%clk 0:02:55.1]} 8. Ne5 {[%clk
0:02:56.4]} 8... Nd7 {[%clk 0:02:33.5]} 9. Nxd7 {[%clk 0:02:39]} 9... Bxd7
{[%clk 0:02:30.2]} 10. Nf3 {[%clk 0:02:39]} 10... O-O {[%clk 0:02:16.3]} 11. Be2
{[%clk 0:02:30.5]} 11... f5 {[%clk 0:02:12.8]} 12. Bxd6 {[%clk 0:02:30]} 12...
Qxd6 {[%clk 0:02:12.7]} 13. O-O {[%clk 0:02:30.1]} 13... f4 {[%clk 0:01:58.3]}
14. Qd2 {[%clk 0:02:27.6]} 14... Rae8 {[%clk 0:01:56.9]} 15. dxc5 {[%clk
0:02:23.8]} 15... fxe3 {[%clk 0:01:39.9]} 16. Qxe3 {[%clk 0:02:24.7]} 16... Qf4
{[%clk 0:01:33]} 17. Bb5 {[%clk 0:02:19.7]} 17... Qxe3 {[%clk 0:01:20.7]} 18.
fxe3 {[%clk 0:02:20.6]} 18... a6 {[%clk 0:01:13.6]} 19. Bxc6 {[%clk 0:02:20.4]}
19... Bxc6 {[%clk 0:01:08.7]} 20. Ne5 {[%clk 0:02:20.4]} 20... Bb5 {[%clk
0:01:04.9]} 21. Rf4 {[%clk 0:02:19.7]} 21... g5 {[%clk 0:01:01.1]} 22. Rxf8+
{[%clk 0:02:15.5]} 22... Rxf8 {[%clk 0:01:00.9]} 23. Nf3 {[%clk 0:02:15.7]}
23... h6 {[%clk 0:00:35.2]} 24. Nd4 {[%clk 0:02:13.8]} 24... Bd7 {[%clk
0:00:34.9]} 25. Rf1 {[%clk 0:02:12.9]} 25... Rc8 {[%clk 0:00:16.4]} 26. b4
{[%clk 0:02:05.3]} 26... a5 {[%clk 0:00:16.5]} 27. a3 {[%clk 0:02:03.2]} 27...
axb4 {[%clk 0:00:16.3]} 28. axb4 {[%clk 0:02:00.7]} 28... Ra8 {[%clk 0:00:16.7]}
29. h4 {[%clk 0:01:56]} 29... Kg7 {[%clk 0:00:16.5]} 30. hxg5 {[%clk 0:01:55.6]}
30... hxg5 {[%clk 0:00:17.4]} 31. Nf3 {[%clk 0:01:36.6]} 31... Kf6 {[%clk
0:00:16.6]} 32. e4 {[%clk 0:01:26.2]} 32... dxe4 {[%clk 0:00:16.2]} 33. Nd2+
{[%clk 0:01:25.7]} 33... Ke5 {[%clk 0:00:15.9]} 34. Nc4+ {[%clk 0:01:25.7]} 1-0

[Event "Late-Titled-Tuesday-Blitz-September-12-2023"]
[Site "Chess.com"]
[Date "2023.09.12"]
[Round "5"]
[White "Schwindle"]
[Black "carloseduar100"]
[Result "1-0"]
[WhiteElo "2432"]
[BlackElo "2272"]
[TimeControl "180+1"]
[EndTime "14:51:46 PDT"]
[Termination "Schwindle won by resignation"]

1. e4 {[%clk 0:03:00.9]} 1... e6 {[%clk 0:02:57.6]} 2. d4 {[%clk 0:03:00.6]}
2... d5 {[%clk 0:02:58.5]} 3. Nd2 {[%clk 0:03:01.2]} 3... c5 {[%clk 0:02:58]} 4.
exd5 {[%clk 0:03:00.4]} 4... Qxd5 {[%clk 0:02:58.2]} 5. Ngf3 {[%clk 0:03:01.1]}
5... cxd4 {[%clk 0:02:58.3]} 6. Nb3 {[%clk 0:03:01.6]} 6... Nc6 {[%clk
0:02:58.3]} 7. Nbxd4 {[%clk 0:02:59.4]} 7... Nxd4 {[%clk 0:02:58.7]} 8. Nxd4
{[%clk 0:02:59.5]} 8... a6 {[%clk 0:02:58.9]} 9. c3 {[%clk 0:02:50.3]} 9... Nf6
{[%clk 0:02:58]} 10. Be2 {[%clk 0:02:12.5]} 10... Bd7 {[%clk 0:02:47.9]} 11. O-O
{[%clk 0:02:09.6]} 11... Be7 {[%clk 0:02:37.2]} 12. Bf3 {[%clk 0:02:08.7]} 12...
Qa5 {[%clk 0:01:50.8]} 13. Bxb7 {[%clk 0:02:04.9]} 13... Rb8 {[%clk 0:01:50.6]}
14. Nc6 {[%clk 0:02:02.6]} 14... Qc7 {[%clk 0:01:39.1]} 15. Nxb8 {[%clk
0:02:01.8]} 15... Qxb7 {[%clk 0:01:35.4]} 16. Nxd7 {[%clk 0:02:01.7]} 16... Nxd7
{[%clk 0:01:36.3]} 17. Qb3 {[%clk 0:01:58.8]} 17... Qc8 {[%clk 0:01:30.3]} 18.
Rd1 {[%clk 0:01:56.2]} 18... O-O {[%clk 0:01:30.4]} 19. Bf4 {[%clk 0:01:50.9]}
19... Nc5 {[%clk 0:01:25]} 20. Qc2 {[%clk 0:01:49.8]} 20... a5 {[%clk
0:01:22.5]} 21. Bd6 {[%clk 0:01:45.1]} 21... Bxd6 {[%clk 0:01:05.6]} 22. Rxd6
{[%clk 0:01:46]} 22... a4 {[%clk 0:01:03.6]} 23. Rad1 {[%clk 0:01:43.5]} 23...
Qb7 {[%clk 0:01:03.8]} 24. Rd8 {[%clk 0:01:34.9]} 24... g6 {[%clk 0:01:02.5]}
25. Rxf8+ {[%clk 0:01:32.6]} 25... Kxf8 {[%clk 0:01:03.1]} 26. Qd2 {[%clk
0:01:28.6]} 26... Qb5 {[%clk 0:00:49.5]} 27. b4 {[%clk 0:01:15.5]} 27... axb3
{[%clk 0:00:48.8]} 28. axb3 {[%clk 0:01:15.8]} 28... Nxb3 {[%clk 0:00:47.6]} 29.
Qh6+ {[%clk 0:01:10.6]} 29... Ke7 {[%clk 0:00:44.8]} 30. Qh4+ {[%clk 0:01:06.6]}
30... Kf8 {[%clk 0:00:40.8]} 31. Qf6 {[%clk 0:01:00.6]} 31... Qb6 {[%clk
0:00:41.1]} 32. Rd8+ {[%clk 0:00:59.1]} 32... Qxd8 {[%clk 0:00:41.3]} 33. Qxd8+
{[%clk 0:01:00]} 33... Kg7 {[%clk 0:00:42.1]} 34. h4 {[%clk 0:00:58.6]} 1-0